bitfinex/quotes_BTCUSD_20260103
["timestamp","ask_amount","ask_price","bid_price","bid_amount"]
[1767416172949,0.04605983,90092.0,90091.0,0.01109988]
[1767416173175,0.04605983,90092.0,90090.0,0.06660005]
[1767416173374,0.05717983,90093.0,90091.0,0.01109988]
[1767416173952,0.01112,90092.0,90091.0,0.01109988]
[1767416174153,0.01112,90092.0,90088.0,0.02770105]
[1767416174154,0.04605983,90092.0,90088.0,0.02770105]
[1767416174357,0.05717983,90092.0,90080.0,0.21669502]
[1767416174563,0.04605983,90092.0,90080.0,0.21669502]
[1767416174683,0.04605983,90092.0,90075.0,0.01112]
[1767416174684,0.02947859,90090.0,90087.0,0.01110038]
[1767416174884,0.01112,90090.0,90088.0,0.04682811]
[1767416175079,0.01112,90090.0,90084.0,0.05550375]
[1767416175280,0.01112,90090.0,90080.0,0.21669502]
[1767416175281,0.000999,90088.0,90082.0,0.01110099]
[1767416175580,0.01110025,90088.0,90082.0,0.01110099]
[1767416175775,0.01110038,90087.0,90078.0,0.01110148]
[1767416176022,0.01110038,90087.0,90078.0,0.05792959]
[1767416176175,0.0111005,90086.0,90079.0,0.01110136]
[1767416176713,0.0111005,90086.0,90080.0,0.01110124]
[1767416176926,0.0111005,90086.0,90079.0,0.01110136]
[1767416177139,0.01110038,90087.0,90079.0,0.01110136]
[1767416177816,0.01110038,90087.0,90080.0,0.01110124]
[1767416177996,0.05550062,90090.0,90081.0,0.05792923]
[1767416178185,0.01112,90089.0,90083.0,0.04682811]
[1767416178387,0.07772007,90090.0,90083.0,0.04682811]
[1767416178591,0.07772007,90090.0,90081.0,0.01110112]
[1767416178592,0.04605983,90089.0,90081.0,0.01110112]
[1767416178827,0.04605983,90087.0,90078.0,0.06660839]
[1767416179382,0.01109988,90091.0,90088.0,0.04682811]
[1767416179556,0.01110013,90089.0,90088.0,0.04582911]
[1767416179751,0.01112,90090.0,90088.0,0.04582911]
[1767416179959,0.01110013,90089.0,90088.0,0.04582911]
[1767416180185,0.01112,90089.0,90088.0,0.04582911]
[1767416180361,0.010121,90089.0,90085.0,0.04682811]
[1767416180563,0.01110001,90090.0,90085.0,0.04682811]
[1767416180778,0.01112,90089.0,90085.0,0.04682811]
[1767416183579,0.01112,90089.0,90085.0,0.05792873]
[1767416183803,0.01112,90089.0,90085.0,0.04682811]
[1767416184612,0.01112,90089.0,90085.0,0.05792873]
[1767416184949,0.01112,90089.0,90085.0,0.04682811]
[1767416186125,0.01112,90089.0,90087.0,0.04682811]
[1767416187285,0.06659667,90096.0,90091.0,0.04682811]
[1767416187537,0.01112,90095.0,90091.0,0.04682811]
[1767416187773,0.02221939,90095.0,90091.0,0.04682811]
[1767416188108,0.01109951,90094.0,90091.0,0.04682811]
[1767416188590,0.02221939,90095.0,90091.0,0.04682811]
[1767416189097,0.01109951,90094.0,90091.0,0.04582911]
[1767416189444,0.0110984,90103.0,90094.0,0.000999]
[1767416189648,0.01109804,90106.0,90096.0,0.0489669]
[1767416189877,0.02221816,90105.0,90096.0,0.0489669]
[1767416190051,0.02221828,90104.0,90096.0,0.06006617]
[1767416190253,0.0110984,90103.0,90097.0,0.0489669]
[1767416190431,0.0110984,90103.0,90097.0,0.06006604]
[1767416190632,0.0110984,90103.0,90097.0,0.0489669]
[1767416190834,0.01112,90102.0,90098.0,0.06006592]
[1767416191256,0.01112,90102.0,90098.0,0.0489669]
[1767416191654,0.01112,90102.0,90098.0,0.06006592]
[1767416191908,0.01109828,90104.0,90098.0,0.0489669]
[1767416192042,0.06658872,90106.0,90098.0,0.06006592]
[1767416192043,0.01112,90103.0,90098.0,0.06006592]
[1767416192238,0.01112,90103.0,90099.0,0.0600658]
[1767416192482,0.04620322,90102.0,90099.0,0.0110989]
[1767416192678,0.01112,90103.0,90096.0,0.0489669]
[1767416192839,0.01112,90103.0,90100.0,0.0489669]
[1767416193040,0.01112,90102.0,90100.0,0.0489669]
[1767416193357,0.01109804,90106.0,90102.0,0.0489669]
[1767416193558,0.03495615,90105.0,90102.0,0.0489669]
[1767416193757,0.02385799,90104.0,90102.0,0.0489669]
[1767416194195,0.01112,90103.0,90102.0,0.0489669]
[1767416194719,0.01112,90103.0,90099.0,0.0110989]
[1767416194926,0.01109804,90106.0,90099.0,0.0110989]
[1767416195129,0.01112,90102.0,90099.0,0.0110989]
[1767416195772,0.010121,90102.0,90098.0,0.01109902]
[1767416196145,0.01109804,90106.0,90099.0,0.0110989]
[1767416196322,0.01112,90101.0,90099.0,0.0110989]
[1767416196845,0.01112,90101.0,90098.0,0.01109902]
[1767416197210,0.01112,90101.0,90098.0,0.06659369]
[1767416197400,0.01112,90101.0,90098.0,0.01109902]
[1767416197799,0.01109791,90107.0,90100.0,0.01109877]
[1767416198001,0.03497618,90106.0,90100.0,0.01109877]
[1767416198203,0.02385618,90105.0,90099.0,0.0110989]
[1767416198593,0.02385618,90105.0,90100.0,0.01109877]
[1767416198848,0.02385618,90105.0,90101.0,0.01109865]
[1767416199591,0.02385618,90105.0,90100.0,0.01109877]
[1767416199793,0.02221804,90106.0,90100.0,0.01109877]
[1767416199944,0.0238555,90105.0,90099.0,0.0110989]
[1767416200150,0.0238555,90105.0,90099.0,0.0600658]
[1767416200350,0.0238555,90105.0,90100.0,0.01109877]
[1767416200549,0.0238555,90105.0,90101.0,0.0489669]
[1767416200736,0.03495366,90105.0,90101.0,0.0489669]
[1767416200939,0.02221804,90106.0,90101.0,0.0489669]
[1767416201339,0.01112,90106.0,90101.0,0.0489669]
[1767416201571,0.02221804,90106.0,90101.0,0.0489669]
[1767416202098,0.01112,90105.0,90101.0,0.0489669]
[1767416203748,0.000999,90101.0,90099.0,0.0110989]
[1767416203931,0.000999,90101.0,90099.0,0.0600658]
[1767416204165,0.01112,90104.0,90099.0,0.0600658]
[1767416204605,0.02221828,90104.0,90099.0,0.0489669]
[1767416204806,0.01109828,90104.0,90099.0,0.0489669]
[1767416205005,0.01112,90103.0,90099.0,0.0489669]
[1767416205666,0.01109804,90106.0,90099.0,0.0489669]
[1767416205967,0.01112,90102.0,90099.0,0.0489669]
[1767416206736,0.01112,90102.0,90099.0,0.0600658]
[1767416207052,0.01112,90102.0,90099.0,0.0489669]
[1767416207591,0.01112,90102.0,90096.0,0.01109927]
[1767416207924,0.01109865,90101.0,90094.0,0.06006641]
[1767416208070,0.02221853,90102.0,90095.0,0.01109939]
[1767416208293,0.01109865,90101.0,90094.0,0.06006641]
[1767416208479,0.01109865,90101.0,90095.0,0.01109939]
[1767416208940,0.01109865,90101.0,90094.0,0.0489669]
[1767416209065,0.01109877,90100.0,90094.0,0.0489669]
[1767416209693,0.01109865,90101.0,90095.0,0.01109939]
[1767416210249,0.01109865,90101.0,90094.0,0.06006641]
[1767416210526,0.01109865,90101.0,90095.0,0.01109939]
[1767416210707,0.07771169,90102.0,90095.0,0.01109939]
[1767416211251,0.02221853,90102.0,90096.0,0.01109927]
[1767416211521,0.02221853,90102.0,90095.0,0.01109939]
[1767416211944,0.01109865,90101.0,90095.0,0.01109939]
[1767416212113,0.02221853,90102.0,90096.0,0.01109927]
[1767416212780,0.01109865,90101.0,90095.0,0.01109939]
[1767416214142,0.01109865,90101.0,90094.0,0.06006641]
[1767416214300,0.01109865,90101.0,90095.0,0.01109939]
[1767416215123,0.01112,90102.0,90101.0,0.000999]
[1767416215737,0.01112,90102.0,90097.0,0.01109914]
[1767416216100,0.01112,90102.0,90097.0,0.06006604]
[1767416217043,0.010121,90102.0,90099.0,0.0110989]
[1767416217828,0.01109804,90106.0,90100.0,0.01109877]
[1767416218028,0.01112,90103.0,90100.0,0.01109877]
[1767416220447,0.01112,90103.0,90100.0,0.06659226]
[1767416220956,0.0112476,90116.0,90106.0,0.0459757]
[1767416221161,0.0112476,90116.0,90100.0,0.01109877]
[1767416221162,0.0001508,90116.0,90112.0,0.057073]
[1767416221395,0.01109619,90121.0,90112.0,0.057073]
[1767416221396,0.01112,90121.0,90116.0,0.0572225]
[1767416221572,0.01109557,90126.0,90118.0,0.01109656]
[1767416221776,0.01112,90123.0,90118.0,0.01109656]
[1767416222088,0.01112,90123.0,90116.0,0.0570725]
[1767416222292,0.01112,90123.0,90117.0,0.01109668]
[1767416222690,0.01109557,90126.0,90118.0,0.01109656]
[1767416222909,0.01109582,90124.0,90118.0,0.01109656]
[1767416223141,0.01109582,90124.0,90117.0,0.01109668]
[1767416223142,0.01109594,90123.0,90117.0,0.01109668]
[1767416223345,0.0110957,90125.0,90119.0,0.01109643]
[1767416223820,0.25699633,90128.0,90120.0,0.01109631]
[1767416223981,0.01109557,90126.0,90119.0,0.05707213]
[1767416224344,0.01109557,90126.0,90120.0,0.01109631]
[1767416224917,0.01109557,90126.0,90119.0,0.05707213]
[1767416224918,0.0110957,90125.0,90119.0,0.0459757]
[1767416225162,0.0110957,90125.0,90119.0,0.05707213]
[1767416225293,0.01109557,90126.0,90120.0,0.01109631]
[1767416226081,0.01109545,90127.0,90119.0,0.05707213]
[1767416226266,0.01109557,90126.0,90120.0,0.01109631]
[1767416226887,0.01109557,90126.0,90119.0,0.0459757]
[1767416227086,0.01109582,90124.0,90119.0,0.0459757]
[1767416227290,0.26811633,90128.0,90121.0,0.0459757]
[1767416227465,0.26811633,90128.0,90124.0,0.000999]
[1767416227654,0.01109545,90127.0,90124.0,0.000999]
[1767416228057,0.01109545,90127.0,90120.0,0.01109631]
[1767416228706,0.01109545,90127.0,90121.0,0.01109619]
[1767416228854,0.01109557,90126.0,90120.0,0.01109631]
[1767416229306,0.0110957,90125.0,90119.0,0.01109643]
[1767416229614,0.0110957,90125.0,90118.0,0.01109656]
[1767416229816,0.01109594,90123.0,90117.0,0.01109668]
[1767416230023,0.01109594,90123.0,90118.0,0.0459757]
[1767416230225,0.01109606,90122.0,90118.0,0.0459757]
[1767416230579,0.01109594,90123.0,90118.0,0.0459757]
[1767416231423,0.01109594,90123.0,90118.0,0.05707226]
[1767416231572,0.01109606,90122.0,90118.0,0.0459757]
[1767416231778,0.01109594,90123.0,90118.0,0.0459757]
[1767416231978,0.01109594,90123.0,90118.0,0.05707226]
[1767416232597,0.01109582,90124.0,90118.0,0.0459757]
[1767416232800,0.01109594,90123.0,90118.0,0.05707226]
[1767416232999,0.01109582,90124.0,90118.0,0.05707226]
[1767416233848,0.0110957,90125.0,90119.0,0.01109643]
[1767416234202,0.01109557,90126.0,90120.0,0.01109631]
[1767416234943,0.0110957,90125.0,90119.0,0.01109643]
[1767416235511,0.01109545,90127.0,90121.0,0.01109619]
[1767416235705,0.02221533,90128.0,90122.0,0.05707176]
[1767416235890,0.01112,90128.0,90122.0,0.05707176]
[1767416236091,0.01112,90128.0,90123.0,0.01109594]
[1767416236513,0.02221533,90128.0,90122.0,0.05707176]
[1767416236734,0.01109483,90132.0,90128.0,0.000999]
[1767416236936,0.01112,90131.0,90128.0,0.000999]
[1767416237135,0.01112,90131.0,90126.0,0.01109557]
[1767416237136,0.02221496,90131.0,90126.0,0.01109557]
[1767416237544,0.01112,90131.0,90126.0,0.01109557]
[1767416237746,0.02221496,90131.0,90125.0,0.0110957]
[1767416237950,0.01109496,90131.0,90126.0,0.01109557]
[1767416238197,0.01109496,90131.0,90125.0,0.0110957]
[1767416238366,0.01109496,90131.0,90124.0,0.01109582]
[1767416238543,0.01109496,90131.0,90126.0,0.01109557]
[1767416238743,0.01109496,90131.0,90125.0,0.0110957]
[1767416238950,0.02221483,90132.0,90126.0,0.01109557]
[1767416239149,0.01112,90132.0,90126.0,0.01109557]
[1767416239358,0.01112,90132.0,90125.0,0.0110957]
[1767416239548,0.02221483,90132.0,90126.0,0.01109557]
[1767416240581,0.01109496,90131.0,90125.0,0.0110957]
[1767416240784,0.02221483,90132.0,90127.0,0.01109545]
[1767416241001,0.01109496,90131.0,90125.0,0.0110957]
[1767416241189,0.01109496,90131.0,90126.0,0.01109557]
[1767416241799,0.01109483,90132.0,90126.0,0.01109557]
[1767416242360,0.02221471,90133.0,90127.0,0.01109545]
[1767416242723,0.01109483,90132.0,90126.0,0.01109557]
[1767416243747,0.01109508,90130.0,90125.0,0.0110957]
[1767416243992,0.05547419,90132.0,90125.0,0.0110957]
[1767416243993,0.05547419,90132.0,90126.0,0.01109557]
[1767416244576,0.01109496,90131.0,90125.0,0.0110957]
[1767416245434,0.01109496,90131.0,90126.0,0.01109557]
[1767416245725,0.01109496,90131.0,90125.0,0.0110957]
[1767416246291,0.01109496,90131.0,90126.0,0.01109557]
[1767416246493,0.01109483,90132.0,90126.0,0.01109557]
[1767416248634,0.01109483,90132.0,90127.0,0.01109545]
[1767416249750,0.02221471,90133.0,90128.0,0.01109533]
[1767416249960,0.01112,90133.0,90128.0,0.01109533]
[1767416250519,0.05547084,90138.0,90125.0,0.06657371]
[1767416250520,0.00114064,90139.0,90135.0,0.01109446]
[1767416250687,0.0110936,90142.0,90135.0,0.01109446]
[1767416250688,0.06656209,90142.0,90135.0,0.01109446]
[1767416250887,0.01109348,90143.0,90137.0,0.01109422]
[1767416251189,0.01109336,90144.0,90137.0,0.01109422]
[1767416251443,0.01109348,90143.0,90137.0,0.01109422]
[1767416251639,0.0110936,90142.0,90136.0,0.01109434]
[1767416251840,0.04695216,90144.0,90138.0,0.0110941]
[1767416251987,0.04695216,90144.0,90140.0,0.01109385]
[1767416252188,0.05804552,90144.0,90139.0,0.01109397]
[1767416252437,0.04695216,90144.0,90139.0,0.01109397]
[1767416252742,0.01109323,90145.0,90140.0,0.01109385]
[1767416252920,0.257021,90148.0,90145.0,0.01109323]
[1767416253120,0.25712909,90148.0,90145.0,0.01109323]
[1767416253317,0.25712909,90148.0,90145.0,0.06655892]
[1767416253522,0.25712909,90148.0,90145.0,0.01109323]
[1767416253889,0.24600909,90148.0,90146.0,0.05546506]
[1767416254089,0.24501009,90148.0,90146.0,0.05546504]
[1767416254820,0.24501009,90148.0,90145.0,0.06655935]
[1767416256088,0.24501009,90148.0,90145.0,0.01109323]
[1767416256286,0.00010809,90148.0,90145.0,0.01109323]
[1767416256845,0.00010809,90148.0,90147.0,0.05546496]
[1767416258014,0.01109188,90156.0,90151.0,0.01023721]
[1767416258214,0.022212,90155.0,90149.0,0.05752487]
[1767416258412,0.022212,90155.0,90150.0,0.01109262]
[1767416258413,0.01112,90155.0,90150.0,0.01109262]
[1767416258627,0.01112,90155.0,90151.0,0.0110925]
[1767416258979,0.01112,90155.0,90152.0,0.01109237]
[1767416262409,0.01109163,90158.0,90152.0,0.01109237]
[1767416262593,0.01112,90157.0,90152.0,0.01109237]
[1767416262994,0.01112,90157.0,90153.0,0.01109225]
[1767416263818,0.04695216,90164.0,90159.0,0.05545758]
[1767416264017,0.01112,90163.0,90159.0,0.01109151]
[1767416264578,0.01112,90163.0,90158.0,0.01109163]
[1767416264579,0.01109114,90162.0,90151.0,0.0110925]
[1767416264866,0.01109114,90162.0,90149.0,0.05546338]
[1767416264867,0.01109151,90159.0,90149.0,0.05546338]
[1767416265007,0.01109176,90157.0,90151.0,0.0110925]
[1767416265213,0.01109151,90159.0,90152.0,0.01109237]
[1767416265440,0.01109163,90158.0,90153.0,0.01109225]
[1767416265605,0.01109151,90159.0,90154.0,0.01109213]
[1767416265804,0.01109188,90156.0,90149.0,0.05546364]
[1767416266045,0.01109188,90156.0,90151.0,0.0110925]
[1767416266249,0.01109188,90156.0,90150.0,0.01109262]
[1767416266463,0.01109188,90156.0,90151.0,0.0110925]
[1767416266622,0.01109188,90156.0,90150.0,0.01109262]
[1767416266623,0.011092,90155.0,90150.0,0.01109262]
[1767416266804,0.01109188,90156.0,90151.0,0.0110925]
[1767416267720,0.011092,90155.0,90150.0,0.01109262]
[1767416267926,0.01109188,90156.0,90150.0,0.01109262]
[1767416268166,0.01109225,90153.0,90146.0,0.06655824]
[1767416268326,0.01109225,90153.0,90148.0,0.01109286]
[1767416268527,0.0110925,90151.0,90145.0,0.01109323]
[1767416268768,0.01109225,90153.0,90148.0,0.01109286]
[1767416269129,0.01109237,90152.0,90146.0,0.01109311]
[1767416269337,0.01109237,90152.0,90147.0,0.01109299]
[1767416269588,0.01109225,90153.0,90148.0,0.01109286]
[1767416270036,0.01109237,90152.0,90147.0,0.01109299]
[1767416270472,0.01109225,90153.0,90147.0,0.01109299]
[1767416271283,0.01109237,90152.0,90147.0,0.01109299]
[1767416271481,0.01109225,90153.0,90148.0,0.01109286]
[1767416271834,0.0110925,90151.0,90145.0,0.01109323]
[1767416272030,0.0110925,90151.0,90146.0,0.01109311]
[1767416272332,0.01109237,90152.0,90147.0,0.01109299]
[1767416272467,0.01109213,90154.0,90148.0,0.01109286]
[1767416272666,0.01109225,90153.0,90148.0,0.01109286]
[1767416274105,0.01109237,90152.0,90147.0,0.01109299]
[1767416274304,0.01109225,90153.0,90148.0,0.01109286]
[1767416275815,0.01109237,90152.0,90147.0,0.01109299]
[1767416276052,0.01109225,90153.0,90148.0,0.01109286]
[1767416277617,0.01109237,90152.0,90147.0,0.01109299]
[1767416277816,0.01109237,90152.0,90148.0,0.01109286]
[1767416278159,0.01109237,90152.0,90147.0,0.01109299]
[1767416278283,0.01109237,90152.0,90146.0,0.01109311]
[1767416278492,0.01109237,90152.0,90147.0,0.01109299]
[1767416278903,0.0110925,90151.0,90146.0,0.01109311]
[1767416279211,0.01109237,90152.0,90147.0,0.01109299]
[1767416280203,0.0110925,90151.0,90145.0,0.01109323]
[1767416280344,0.0110925,90151.0,90146.0,0.01109311]
[1767416280770,0.01109237,90152.0,90147.0,0.01109299]
[1767416281367,0.01109262,90150.0,90145.0,0.01109323]
[1767416281571,0.05546125,90154.0,89795.0,0.0001508]
[1767416281572,0.01109336,90144.0,90139.0,0.01112]
[1767416281777,0.01112,90154.0,90144.0,0.000999]
[1767416281778,0.21668966,90150.0,90144.0,0.000999]
[1767416282110,0.01109311,90146.0,90144.0,0.000999]
[1767416282321,0.01109311,90146.0,90140.0,0.01109385]
[1767416282322,0.01109323,90145.0,90140.0,0.01109385]
[1767416282526,0.01109311,90146.0,90141.0,0.01109373]
[1767416282867,0.01109299,90147.0,90142.0,0.0110936]
[1767416283050,0.01109323,90145.0,90141.0,0.01109373]
[1767416283253,0.01109299,90147.0,90141.0,0.01109373]
[1767416283254,0.01109311,90146.0,90141.0,0.01109373]
[1767416284070,0.01109323,90145.0,90140.0,0.01109385]
[1767416285585,0.01109311,90146.0,90140.0,0.01109385]
[1767416286857,0.01109323,90145.0,90140.0,0.01109385]
[1767416289279,0.01109311,90146.0,90145.0,0.000999]
[1767416289477,0.01109299,90147.0,90145.0,0.000999]
[1767416289797,0.01109323,90145.0,90141.0,0.01109373]
[1767416290559,0.01109311,90146.0,90141.0,0.01109373]
[1767416292659,0.01109286,90148.0,90142.0,0.0110936]
[1767416292895,0.01109299,90147.0,90143.0,0.01109348]
[1767416293163,0.01109299,90147.0,90142.0,0.0110936]
[1767416293458,0.01109163,90158.0,90152.0,0.01109237]
[1767416293683,0.01109176,90157.0,90152.0,0.01109237]
[1767416293910,0.27214701,90160.0,90152.0,0.01109237]
[1767416294109,0.27214701,90160.0,90151.0,0.05546199]
[1767416294110,0.27214701,90160.0,90151.0,0.0110925]
[1767416294291,0.01109151,90159.0,90151.0,0.0110925]
[1767416294913,0.01109127,90161.0,90153.0,0.01109225]
[1767416295106,0.01109127,90161.0,90156.0,0.01109188]
[1767416295107,0.22778093,90161.0,90156.0,0.01109188]
[1767416295328,0.01112,90160.0,90157.0,0.01109176]
[1767416295545,0.000999,90157.0,90156.0,0.01109188]
[1767416296010,0.02221139,90160.0,90155.0,0.011092]
[1767416296209,0.01112,90160.0,90156.0,0.01109188]
[1767416296424,0.02221139,90160.0,90155.0,0.011092]
[1767416296632,0.01112,90160.0,90156.0,0.01109188]
[1767416296855,0.02221139,90160.0,90155.0,0.011092]
[1767416297084,0.01109151,90159.0,90154.0,0.01109213]
[1767416298105,0.02221139,90160.0,90155.0,0.011092]
[1767416298827,0.01112,90160.0,90156.0,0.01109188]
[1767416299534,0.01112,90160.0,90157.0,0.01109176]
[1767416299861,0.02221139,90160.0,90156.0,0.01109188]
[1767416300071,0.02221139,90160.0,90155.0,0.011092]
[1767416301771,0.01109114,90162.0,90156.0,0.01109188]
[1767416302018,0.01112,90160.0,90156.0,0.01109188]
[1767416302356,0.01109053,90167.0,90160.0,0.01109139]
[1767416302526,0.01109028,90169.0,90164.0,0.0110909]
[1767416302736,7.99e-05,90169.0,90164.0,0.0110909]
[1767416302886,7.99e-05,90169.0,90166.0,0.01109065]
[1767416305350,7.99e-05,90169.0,90166.0,0.06654347]
[1767416307823,7.99e-05,90169.0,90167.0,0.05545222]
[1767416308025,0.01112,90175.0,90170.0,0.01109016]
[1767416308250,0.01112,90175.0,90171.0,0.01109004]
[1767416308634,0.01112,90175.0,90172.0,0.01108991]
[1767416308847,0.0110893,90177.0,90171.0,0.01109004]
[1767416309266,0.0110893,90177.0,90172.0,0.01108991]
[1767416309468,0.01112,90178.0,90173.0,0.01108979]
[1767416309653,0.0110893,90177.0,90171.0,0.01109004]
[1767416310073,0.0110893,90177.0,90172.0,0.01108991]
[1767416310316,0.0110893,90177.0,90173.0,0.01108979]
[1767416310523,0.01112,90178.0,90173.0,0.01108979]
[1767416310852,0.01112,90178.0,90177.0,0.0110893]
[1767416311066,0.01112,90178.0,90176.0,0.01108942]
[1767416311492,0.01112,90178.0,90177.0,0.0110893]
[1767416311898,0.01112,90178.0,90176.0,0.01108942]
[1767416312322,0.01112,90178.0,90176.0,0.06653611]
[1767416312734,4.032e-05,90182.0,90178.0,0.000999]
[1767416313107,0.01112,90181.0,90178.0,0.000999]
[1767416313470,0.01112,90181.0,90177.0,0.0110893]
[1767416313647,0.01112,90181.0,90178.0,0.01108917]
[1767416313816,0.01112,90180.0,90178.0,0.01108917]
[1767416314230,0.01112,90181.0,90178.0,0.01108917]
[1767416314634,0.01112,90181.0,90179.0,0.05544528]
[1767416314837,0.01112,90181.0,90178.0,0.01108917]
[1767416315074,0.01112,90181.0,90179.0,0.01108905]
[1767416315277,0.01112,90181.0,90177.0,0.0110893]
[1767416315574,0.01112,90181.0,90171.0,0.0554502]
[1767416315575,0.01108917,90178.0,90171.0,0.0554502]
[1767416315816,0.01109004,90171.0,90162.0,0.05545549]
[1767416315985,0.05544958,90172.0,90158.0,0.06654926]
[1767416315986,0.06654436,90166.0,90158.0,0.06654926]
[1767416316223,0.06654433,90166.0,90158.0,0.01109163]
[1767416316424,0.06654433,90166.0,90159.0,0.01109151]
[1767416316849,0.06654433,90166.0,90161.0,0.01109127]
[1767416316965,0.01109053,90167.0,90161.0,0.01109127]
[1767416317170,0.01109065,90166.0,90160.0,0.01109139]
[1767416317386,0.01109065,90166.0,90161.0,0.01109127]
[1767416318520,0.01109065,90166.0,90158.0,0.01112]
[1767416318839,0.01109077,90165.0,90160.0,0.01109139]
[1767416319203,0.0110909,90164.0,90160.0,0.01109139]
[1767416319716,0.0110909,90164.0,90159.0,0.01109151]
[1767416321510,0.01109065,90166.0,90164.0,0.000999]
[1767416321925,0.01109065,90166.0,90160.0,0.01109139]
[1767416322324,0.01109065,90166.0,90161.0,0.01109127]
[1767416323131,0.01109053,90167.0,90162.0,0.01109114]
[1767416324073,0.0110904,90168.0,90163.0,0.01109102]
[1767416324752,0.01109053,90167.0,90163.0,0.01109102]
[1767416325472,0.01109028,90169.0,90167.0,0.000999]
[1767416325971,0.01109028,90169.0,90164.0,0.0110909]
[1767416326790,0.0110904,90168.0,90163.0,0.01109102]
[1767416327123,0.01109028,90169.0,90164.0,0.0110909]
[1767416327883,0.0110904,90168.0,90163.0,0.01109102]
[1767416328675,0.0110904,90168.0,90164.0,0.0110909]
[1767416329784,0.0110904,90168.0,90163.0,0.01109102]
[1767416330191,0.01109028,90169.0,90164.0,0.0110909]
[1767416331090,0.01109016,90170.0,90165.0,0.01109077]
[1767416331577,0.01109016,90170.0,90164.0,0.0110909]
[1767416331890,0.0110904,90168.0,90164.0,0.0110909]
[1767416332223,0.01109028,90169.0,90164.0,0.0110909]
[1767416335015,0.01109016,90170.0,90165.0,0.01109077]
[1767416335219,0.01109028,90169.0,90164.0,0.0110909]
[1767416335816,0.0110904,90168.0,90163.0,0.01109102]
[1767416336980,0.0110904,90168.0,90162.0,0.06654628]
[1767416337182,0.0110904,90168.0,90162.0,0.01109114]
[1767416337902,0.0110904,90168.0,90163.0,0.01109102]
[1767416338235,0.01109016,90170.0,90164.0,0.0110909]
[1767416338442,0.01109004,90171.0,90164.0,0.0110909]
[1767416338770,0.01109016,90170.0,90165.0,0.01109077]
[1767416338964,0.01109028,90169.0,90164.0,0.0110909]
[1767416339789,0.01109028,90169.0,90165.0,0.01109077]
[1767416340209,0.01109016,90170.0,90165.0,0.01109077]
[1767416340570,0.01109028,90169.0,90163.0,0.06654571]
[1767416340767,0.01109028,90169.0,90164.0,0.0110909]
[1767416341308,0.0110904,90168.0,90163.0,0.01109102]
[1767416341807,0.01109065,90166.0,90161.0,0.01109127]
[1767416342578,0.01109065,90166.0,90160.0,0.01109139]
[1767416342787,0.01109065,90166.0,90161.0,0.01109127]
[1767416343032,0.0110909,90164.0,90159.0,0.01109151]
[1767416343240,0.01109077,90165.0,90160.0,0.01109139]
[1767416343983,0.01109053,90167.0,90161.0,0.01109127]
[1767416344102,0.01109065,90166.0,90161.0,0.01109127]
[1767416344762,0.01109077,90165.0,90160.0,0.01109139]
[1767416345115,0.01109065,90166.0,90161.0,0.01109127]
[1767416345705,0.01109053,90167.0,90162.0,0.01109114]
[1767416346105,0.0110904,90168.0,90163.0,0.01109102]
[1767416346306,0.01109028,90169.0,90164.0,0.0110909]
[1767416347805,0.0110904,90168.0,90163.0,0.01109102]
[1767416348247,0.01109028,90169.0,90164.0,0.0110909]
[1767416348621,0.0110904,90168.0,90163.0,0.01109102]
[1767416349161,0.01109053,90167.0,90162.0,0.01109114]
[1767416350951,0.0110904,90168.0,90163.0,0.01109102]
[1767416351386,0.01109053,90167.0,90162.0,0.01109114]
[1767416352383,0.0110904,90168.0,90163.0,0.01109102]
[1767416352997,0.01109053,90167.0,90162.0,0.01109114]
[1767416353150,0.0110904,90168.0,90163.0,0.01109102]
[1767416354363,0.01109028,90169.0,90163.0,0.01109102]
[1767416355235,0.06654297,90168.0,90162.0,0.01109114]
[1767416355532,0.01109053,90167.0,90162.0,0.01109114]
[1767416357100,0.01109065,90166.0,90158.0,0.07774931]
[1767416357319,0.01109053,90167.0,90162.0,0.01109114]
[1767416359158,0.05544961,90172.0,90164.0,0.0110909]
[1767416359353,0.05544961,90172.0,90167.0,0.000999]
[1767416359555,0.01109016,90170.0,90165.0,0.01109077]
[1767416359757,0.01109028,90169.0,90163.0,0.01109102]
[1767416359907,0.01109028,90169.0,90164.0,0.0110909]
[1767416360113,0.11297093,90168.0,90159.0,0.01109151]
[1767416360355,0.01109139,90160.0,90152.0,0.01112]
[1767416360515,0.01109139,90160.0,90155.0,0.011092]
[1767416360718,0.05751964,90161.0,90156.0,0.01109188]
[1767416361056,0.05751939,90163.0,90161.0,0.000999]
[1767416361260,0.05751939,90163.0,90158.0,0.01109163]
[1767416361461,0.04642837,90163.0,90159.0,0.01109151]
[1767416361781,0.01109127,90161.0,90155.0,0.011092]
[1767416362351,0.05751939,90163.0,90157.0,0.06655016]
[1767416363230,0.05751939,90163.0,90158.0,0.01109163]
[1767416363480,0.04642837,90163.0,90158.0,0.01109163]
[1767416363627,0.05751939,90163.0,90158.0,0.01109163]
[1767416363829,0.04642837,90163.0,90159.0,0.01109151]
[1767416364237,0.04642837,90163.0,90160.0,0.01109139]
[1767416364666,0.04542937,90163.0,90159.0,0.01109151]
[1767416365188,0.04542937,90163.0,90157.0,0.06655016]
[1767416365399,0.01109114,90162.0,90157.0,0.01109176]
[1767416366349,0.05652039,90163.0,90158.0,0.01109163]
[1767416366540,0.01109114,90162.0,90157.0,0.01109176]
[1767416366978,0.01109114,90162.0,90158.0,0.01109163]
[1767416367162,0.05652039,90163.0,90158.0,0.01109163]
[1767416367359,0.04542937,90163.0,90160.0,0.01109139]
[1767416367758,0.04542937,90163.0,90159.0,0.01109151]
[1767416368563,0.05652039,90163.0,90159.0,0.01109151]
[1767416369163,0.04542937,90163.0,90159.0,0.01109151]
[1767416369402,0.05652039,90163.0,90159.0,0.01109151]
[1767416370480,0.0110909,90164.0,90159.0,0.01109151]
[1767416370645,0.02221077,90165.0,90160.0,0.01109139]
[1767416370972,0.02221077,90165.0,90161.0,0.01109127]
[1767416371322,0.01112,90165.0,90161.0,0.01109127]
[1767416371521,0.01112,90165.0,90162.0,0.01109114]
[1767416371923,0.01112,90165.0,90161.0,0.01109127]
[1767416372375,0.02221077,90165.0,90160.0,0.01109139]
[1767416372878,0.0110909,90164.0,90159.0,0.01109151]
[1767416373039,0.02221077,90165.0,90160.0,0.01109139]
[1767416373682,0.01109102,90163.0,90158.0,0.01109163]
[1767416374455,0.01109114,90162.0,90157.0,0.01109176]
[1767416375021,0.01109102,90163.0,90158.0,0.01109163]
[1767416375380,0.01109127,90161.0,90155.0,0.011092]
[1767416375718,0.000999,90158.0,90155.0,0.011092]
[1767416375879,0.01109127,90161.0,90156.0,0.01109188]
[1767416376077,0.01109114,90162.0,90157.0,0.01109176]
[1767416377545,0.01109102,90163.0,90158.0,0.01109163]
[1767416377951,0.01109102,90163.0,90158.0,0.01009263]
[1767416378330,0.01109114,90162.0,90157.0,0.01109176]
[1767416379900,0.01109102,90163.0,90157.0,0.01109176]
[1767416379901,0.01109102,90163.0,90158.0,0.01109163]
[1767416380102,0.01109114,90162.0,90158.0,0.01109163]